[Event "Titled Tuesday Blitz March 21 Late 2023"]
[White "Kurtz, Eric M"]
[Black "Przybylski, Wojciech"]
[WhiteFideId "30939763"]
[BlackFideId "1117599"]
[WhiteElo "2623"]
[BlackElo "2222"]
[Result "1-0"]
[Round "05"]
[TimeControl "180+2"]
[Date "2023.03.21"]
[WhiteClock "0:00:17"]
[BlackClock "0:00:02"]

1. c4 {[%clk 0:03:00]}  Nf6 {[%clk 0:02:57]} 2. g3 {[%clk 0:03:00]}  e5 {[%clk 0:02:56]} 3. Bg2 {[%clk 0:02:59]}  Be7 {[%clk 0:02:54]} 4. Nc3 {[%clk 0:02:59]}  O-O {[%clk 0:02:53]} 5. Nf3 {[%clk 0:02:59]}  Nc6 {[%clk 0:02:51]} 6. O-O {[%clk 0:03:00]}  d6 {[%clk 0:02:50]} 7. d4 {[%clk 0:02:59]}  Bf5 {[%clk 0:02:46]} 8. b3 {[%clk 0:02:57]}  Re8 {[%clk 0:02:45]} 9. Bb2 {[%clk 0:02:56]}  h6 {[%clk 0:02:44]} 10. h3 {[%clk 0:02:56]}  Bh7 {[%clk 0:02:43]} 11. e3 {[%clk 0:02:45]}  e4 {[%clk 0:02:36]} 12. Nd2 {[%clk 0:02:43]}  Bf8 {[%clk 0:02:36]} 13. Qb1 {[%clk 0:02:41]}  Qe7 {[%clk 0:02:35]} 14. a3 {[%clk 0:02:29]}  a5 {[%clk 0:02:30]} 15. Qc2 {[%clk 0:02:25]}  Rac8 {[%clk 0:02:28]} 16. d5 {[%clk 0:02:10]}  Nb8 {[%clk 0:02:27]} 17. b4 {[%clk 0:01:59]}  Nbd7 {[%clk 0:02:23]} 18. Rfd1 {[%clk 0:01:52]}  c6 {[%clk 0:02:15]} 19. dxc6 {[%clk 0:01:48]}  bxc6 {[%clk 0:02:14]} 20. Qb3 {[%clk 0:01:43]}  Rb8 {[%clk 0:02:10]} 21. b5 {[%clk 0:01:30]}  Nc5 {[%clk 0:02:09]} 22. Qc2 {[%clk 0:01:29]}  Nd3 {[%clk 0:02:07]} 23. Rab1 {[%clk 0:01:26]}  cxb5 {[%clk 0:01:47]} 24. Nxb5 {[%clk 0:01:24]}  d5 {[%clk 0:01:44]} 25. Bd4 {[%clk 0:01:07]}  Rec8 {[%clk 0:01:40]} 26. Qa2 {[%clk 0:01:01]}  dxc4 {[%clk 0:01:37]} 27. Nxc4 {[%clk 0:01:02]}  Qe6 {[%clk 0:01:33]} 28. Bxf6 {[%clk 0:00:52]}  gxf6 {[%clk 0:01:28]} 29. Nd4 {[%clk 0:00:50]}  Rxb1 {[%clk 0:00:55]} 30. Nxe6 {[%clk 0:00:49]}  Rxd1+ {[%clk 0:00:55]} 31. Kh2 {[%clk 0:00:50]}  fxe6 {[%clk 0:00:55]} 32. Nd6 {[%clk 0:00:44]}  Bxd6 {[%clk 0:00:10]} 33. Qxe6+ {[%clk 0:00:42]}  Kg7 {[%clk 0:00:10]} 34. Qxc8 {[%clk 0:00:40]}  Nc5 {[%clk 0:00:07]} 35. Qg4+ {[%clk 0:00:32]}  Bg6 {[%clk 0:00:06]} 36. Qxd1 {[%clk 0:00:30]}  Be7 {[%clk 0:00:03]} 37. h4 {[%clk 0:00:24]}  f5 {[%clk 0:00:03]} 38. Qd4+ {[%clk 0:00:21]}  Kf8 {[%clk 0:00:03]} 39. Qh8+ {[%clk 0:00:18]}  Kf7 {[%clk 0:00:03]} 40. Qe5 {[%clk 0:00:16]}  Ne6 {[%clk 0:00:03]} 41. Bf1 {[%clk 0:00:15]}  Bf6 {[%clk 0:00:03]} 42. Qd5 {[%clk 0:00:15]}  Ke7 {[%clk 0:00:02]} 43. Bc4 {[%clk 0:00:15]}  Bf7 {[%clk 0:00:03]} 44. Qb7+ {[%clk 0:00:16]}  Kd6 {[%clk 0:00:02]} 45. Bxe6 {[%clk 0:00:16]}  Bxe6 {[%clk 0:00:02]} 46. Qb6+ {[%clk 0:00:16]}  Ke7 {[%clk 0:00:02]} 47. Qxa5 {[%clk 0:00:16]}  Be5 {[%clk 0:00:03]} 48. Qa4 {[%clk 0:00:17]}  Kf6 {[%clk 0:00:02]} 49. Qa7 {[%clk 0:00:17]}  Bd6 {[%clk 0:00:03]} 50. a4 {[%clk 0:00:17]}  Bd5 {[%clk 0:00:03]} 51. a5 {[%clk 0:00:18]}  Ke6 {[%clk 0:00:03]} 52. Qb6 {[%clk 0:00:18]}  h5 {[%clk 0:00:03]} 53. a6 {[%clk 0:00:19]}  Kd7 {[%clk 0:00:03]} 54. a7 {[%clk 0:00:19]}  Bc7 {[%clk 0:00:03]} 55. Qb8 {[%clk 0:00:19]}  Bc6 {[%clk 0:00:02]} 56. a8=Q {[%clk 0:00:19]}  Bxa8 {[%clk 0:00:02]} 57. Qxa8 {[%clk 0:00:20]}  f4 {[%clk 0:00:03]} 58. exf4 {[%clk 0:00:18]}  Bd6 {[%clk 0:00:02]} 59. Qxe4 {[%clk 0:00:17]}  Kc7 {[%clk 0:00:02]} 60. Qf3 {[%clk 0:00:17]} 1-0


[Site "https://www.chess.com"]

[Event "Titled Tuesday Blitz March 21 Late 2023"]
[White "Srinath, Rao S.V."]
[Black "Piriflillo"]
[WhiteFideId "5028876"]
[WhiteElo "2196"]
[BlackElo "2434"]
[Result "1-0"]
[Round "05"]
[TimeControl "180+2"]
[Date "2023.03.21"]
[WhiteClock "0:00:28"]
[BlackClock "0:00:04"]

1. d4 {[%clk 0:03:00]}  Nf6 {[%clk 0:02:59]} 2. Nf3 {[%clk 0:03:01]}  d5 {[%clk 0:02:59]} 3. c4 {[%clk 0:02:59]}  e6 {[%clk 0:02:58]} 4. e3 {[%clk 0:02:59]}  c5 {[%clk 0:02:53]} 5. Bd3 {[%clk 0:02:53]}  cxd4 {[%clk 0:02:50]} 6. exd4 {[%clk 0:02:52]}  Bb4+ {[%clk 0:02:47]} 7. Nbd2 {[%clk 0:02:51]}  dxc4 {[%clk 0:02:44]} 8. Bxc4 {[%clk 0:02:43]}  Nc6 {[%clk 0:02:44]} 9. a3 {[%clk 0:02:43]}  Be7 {[%clk 0:02:30]} 10. Nb3 {[%clk 0:02:13]}  O-O {[%clk 0:02:29]} 11. O-O {[%clk 0:02:11]}  Nd5 {[%clk 0:02:26]} 12. Qe2 {[%clk 0:02:06]}  Bf6 {[%clk 0:02:21]} 13. Be3 {[%clk 0:01:55]}  b6 {[%clk 0:02:14]} 14. Rac1 {[%clk 0:01:50]}  Bb7 {[%clk 0:02:11]} 15. Bd3 {[%clk 0:01:48]}  Qd6 {[%clk 0:01:57]} 16. Nbd2 {[%clk 0:01:43]}  Nf4 {[%clk 0:01:49]} 17. Bxf4 {[%clk 0:01:41]}  Qxf4 {[%clk 0:01:50]} 18. Be4 {[%clk 0:01:31]}  Rac8 {[%clk 0:01:35]} 19. Qd3 {[%clk 0:01:27]}  g6 {[%clk 0:01:29]} 20. g3 {[%clk 0:01:27]}  Qd6 {[%clk 0:01:15]} 21. Nc4 {[%clk 0:01:26]}  Qd7 {[%clk 0:01:13]} 22. Rfd1 {[%clk 0:01:22]}  Rfd8 {[%clk 0:01:09]} 23. Qe3 {[%clk 0:01:21]}  Ne7 {[%clk 0:01:05]} 24. Nce5 {[%clk 0:01:19]}  Bxe5 {[%clk 0:00:40]} 25. Nxe5 {[%clk 0:01:17]}  Rxc1 {[%clk 0:00:35]} 26. Rxc1 {[%clk 0:01:16]}  Nd5 {[%clk 0:00:32]} 27. Nxd7 {[%clk 0:00:55]}  Nxe3 {[%clk 0:00:32]} 28. Bxb7 {[%clk 0:00:54]}  Rxd7 {[%clk 0:00:33]} 29. Bc8 {[%clk 0:00:50]}  Rxd4 {[%clk 0:00:28]} 30. fxe3 {[%clk 0:00:50]}  Rd2 {[%clk 0:00:28]} 31. Rc7 {[%clk 0:00:47]}  Rxb2 {[%clk 0:00:25]} 32. Rxa7 {[%clk 0:00:47]}  Rb1+ {[%clk 0:00:24]} 33. Kg2 {[%clk 0:00:47]}  Rb2+ {[%clk 0:00:24]} 34. Kf3 {[%clk 0:00:47]}  Rb3 {[%clk 0:00:25]} 35. Bd7 {[%clk 0:00:44]}  e5 {[%clk 0:00:20]} 36. a4 {[%clk 0:00:42]}  Kf8 {[%clk 0:00:15]} 37. g4 {[%clk 0:00:38]}  h5 {[%clk 0:00:12]} 38. h3 {[%clk 0:00:37]}  hxg4+ {[%clk 0:00:12]} 39. hxg4 {[%clk 0:00:38]}  Rb4 {[%clk 0:00:09]} 40. Rb7 {[%clk 0:00:33]}  e4+ {[%clk 0:00:09]} 41. Kf4 {[%clk 0:00:32]}  f6 {[%clk 0:00:07]} 42. Bb5 {[%clk 0:00:29]}  g5+ {[%clk 0:00:06]} 43. Kf5 {[%clk 0:00:29]}  Rb3 {[%clk 0:00:04]} 44. Kxf6 {[%clk 0:00:28]} 1-0


[Site "https://www.chess.com"]

[Event "Titled Tuesday Blitz March 21 Late 2023"]
[White "Castellanos Gomez, Alejandro"]
[Black "Lamard, Guillaume"]
[WhiteFideId "22284141"]
[BlackFideId "600261"]
[WhiteElo "2158"]
[BlackElo "2413"]
[Result "0-1"]
[Round "05"]
[TimeControl "180+2"]
[Date "2023.03.21"]
[WhiteClock "0:00:04"]
[BlackClock "0:00:19"]

1. d4 {[%clk 0:03:00]}  Nf6 {[%clk 0:02:57]} 2. Bf4 {[%clk 0:03:01]}  e6 {[%clk 0:02:55]} 3. e3 {[%clk 0:03:01]}  c5 {[%clk 0:02:55]} 4. c3 {[%clk 0:03:01]}  cxd4 {[%clk 0:02:55]} 5. exd4 {[%clk 0:03:01]}  b6 {[%clk 0:02:53]} 6. Nd2 {[%clk 0:03:00]}  Bb7 {[%clk 0:02:53]} 7. Ngf3 {[%clk 0:03:01]}  Be7 {[%clk 0:02:50]} 8. Bd3 {[%clk 0:03:01]}  O-O {[%clk 0:02:50]} 9. O-O {[%clk 0:03:00]}  d6 {[%clk 0:02:51]} 10. h3 {[%clk 0:03:00]}  a6 {[%clk 0:02:51]} 11. Re1 {[%clk 0:03:01]}  Nbd7 {[%clk 0:02:51]} 12. Bh2 {[%clk 0:02:59]}  Nd5 {[%clk 0:02:47]} 13. Ne4 {[%clk 0:02:57]}  N7f6 {[%clk 0:02:47]} 14. Qd2 {[%clk 0:02:55]}  b5 {[%clk 0:02:38]} 15. Nxf6+ {[%clk 0:02:50]}  Nxf6 {[%clk 0:02:33]} 16. Qf4 {[%clk 0:02:48]}  h6 {[%clk 0:02:26]} 17. Nd2 {[%clk 0:02:43]}  Qb6 {[%clk 0:02:19]} 18. a4 {[%clk 0:02:39]}  Bc6 {[%clk 0:02:14]} 19. a5 {[%clk 0:01:49]}  Qb7 {[%clk 0:02:14]} 20. Bf1 {[%clk 0:01:42]}  Rac8 {[%clk 0:02:10]} 21. Qe3 {[%clk 0:01:26]}  Bd5 {[%clk 0:02:00]} 22. Bf4 {[%clk 0:01:18]}  Bc4 {[%clk 0:01:53]} 23. Nxc4 {[%clk 0:00:57]}  bxc4 {[%clk 0:01:54]} 24. Qd2 {[%clk 0:00:50]}  Qd5 {[%clk 0:01:32]} 25. Ra4 {[%clk 0:00:48]}  Rc7 {[%clk 0:01:24]} 26. g4 {[%clk 0:00:42]}  Rfc8 {[%clk 0:01:08]} 27. Bg2 {[%clk 0:00:41]}  Qb5 {[%clk 0:01:07]} 28. Rea1 {[%clk 0:00:39]}  Nd5 {[%clk 0:01:02]} 29. Bg3 {[%clk 0:00:34]}  Rb8 {[%clk 0:00:55]} 30. R4a2 {[%clk 0:00:31]}  Rcb7 {[%clk 0:00:45]} 31. f4 {[%clk 0:00:27]}  Qc6 {[%clk 0:00:37]} 32. h4 {[%clk 0:00:27]}  Rb3 {[%clk 0:00:34]} 33. f5 {[%clk 0:00:25]}  exf5 {[%clk 0:00:30]} 34. gxf5 {[%clk 0:00:21]}  Qb5 {[%clk 0:00:30]} 35. Re1 {[%clk 0:00:13]}  Bf8 {[%clk 0:00:29]} 36. Qf2 {[%clk 0:00:11]}  Nf6 {[%clk 0:00:27]} 37. Re2 {[%clk 0:00:12]}  Re8 {[%clk 0:00:22]} 38. Bf4 {[%clk 0:00:08]}  Rxe2 {[%clk 0:00:20]} 39. Qxe2 {[%clk 0:00:09]}  Qxf5 {[%clk 0:00:21]} 40. Bg3 {[%clk 0:00:07]}  Qb1+ {[%clk 0:00:21]} 41. Kh2 {[%clk 0:00:06]}  Qxa2 {[%clk 0:00:22]} 42. Qxc4 {[%clk 0:00:03]}  Rxb2 {[%clk 0:00:21]} 43. Qc6 {[%clk 0:00:04]}  d5 {[%clk 0:00:19]} 0-1


[Site "https://www.chess.com"]

[Event "Titled Tuesday Blitz March 21 Late 2023"]
[White "marik_spb"]
[Black "Sivakumar, Shaaketh"]
[BlackFideId "30940176"]
[WhiteElo "2423"]
[BlackElo "2174"]
[Result "0-1"]
[Round "05"]
[TimeControl "180+2"]
[Date "2023.03.21"]
[WhiteClock "0:00:16"]
[BlackClock "0:01:53"]

1. d4 {[%clk 0:03:00]}  d6 {[%clk 0:02:58]} 2. c4 {[%clk 0:03:00]}  e5 {[%clk 0:02:56]} 3. dxe5 {[%clk 0:03:00]}  dxe5 {[%clk 0:02:57]} 4. Qxd8+ {[%clk 0:03:00]}  Kxd8 {[%clk 0:02:58]} 5. g3 {[%clk 0:02:58]}  c6 {[%clk 0:02:58]} 6. Bg2 {[%clk 0:02:58]}  Kc7 {[%clk 0:02:58]} 7. Nf3 {[%clk 0:02:58]}  f6 {[%clk 0:02:57]} 8. O-O {[%clk 0:02:57]}  Be6 {[%clk 0:02:57]} 9. b3 {[%clk 0:02:57]}  Nd7 {[%clk 0:02:57]} 10. Nc3 {[%clk 0:02:54]}  a5 {[%clk 0:02:57]} 11. Be3 {[%clk 0:02:42]}  a4 {[%clk 0:02:54]} 12. Nxa4 {[%clk 0:02:39]}  Bxc4 {[%clk 0:02:53]} 13. Nc3 {[%clk 0:02:34]}  Bf7 {[%clk 0:02:52]} 14. Rfd1 {[%clk 0:02:30]}  Bb4 {[%clk 0:02:52]} 15. Ne4 {[%clk 0:01:49]}  Ne7 {[%clk 0:02:50]} 16. Nfd2 {[%clk 0:01:42]}  Nd5 {[%clk 0:02:49]} 17. Nc4 {[%clk 0:01:42]}  b5 {[%clk 0:02:44]} 18. Ncd6 {[%clk 0:01:29]}  Bxd6 {[%clk 0:02:43]} 19. Nxd6 {[%clk 0:01:27]}  Kxd6 {[%clk 0:02:44]} 20. Rac1 {[%clk 0:01:22]}  Rxa2 {[%clk 0:02:38]} 21. b4 {[%clk 0:01:17]}  Rxe2 {[%clk 0:02:36]} 22. Ba7 {[%clk 0:01:08]}  Ra8 {[%clk 0:02:31]} 23. Bc5+ {[%clk 0:01:06]}  Nxc5 {[%clk 0:02:31]} 24. Rxc5 {[%clk 0:01:07]}  Raa2 {[%clk 0:02:29]} 25. Rdc1 {[%clk 0:01:03]}  Rxf2 {[%clk 0:02:26]} 26. Rxc6+ {[%clk 0:01:03]}  Kd7 {[%clk 0:02:27]} 27. Bh1 {[%clk 0:00:51]}  Rxh2 {[%clk 0:02:23]} 28. R6c5 {[%clk 0:00:48]}  Ne3 {[%clk 0:02:07]} 29. Rc7+ {[%clk 0:00:46]}  Ke6 {[%clk 0:02:08]} 30. Be4 {[%clk 0:00:42]}  Nc4 {[%clk 0:02:01]} 31. Rb7 {[%clk 0:00:26]}  f5 {[%clk 0:01:59]} 32. Bc6 {[%clk 0:00:24]}  Kf6 {[%clk 0:01:56]} 33. Bxb5 {[%clk 0:00:19]}  Bd5 {[%clk 0:01:54]} 34. Bxc4 {[%clk 0:00:16]}  Rh1# {[%clk 0:01:53]} 0-1


[Site "https://www.chess.com"]

[Event "Titled Tuesday Blitz March 21 Late 2023"]
[White "Blomqvist, Erik"]
[Black "drdaro"]
[WhiteFideId "1709437"]
[WhiteElo "2436"]
[BlackElo "2392"]
[Result "0-1"]
[Round "05"]
[TimeControl "180+2"]
[Date "2023.03.21"]
[WhiteClock "0:00:38"]
[BlackClock "0:01:02"]

1. d4 {[%clk 0:03:00]}  g6 {[%clk 0:02:54]} 2. e4 {[%clk 0:02:59]}  Nf6 {[%clk 0:02:55]} 3. e5 {[%clk 0:02:54]}  Nh5 {[%clk 0:02:55]} 4. Be2 {[%clk 0:02:52]}  d6 {[%clk 0:02:55]} 5. Nf3 {[%clk 0:02:52]}  dxe5 {[%clk 0:02:55]} 6. Nxe5 {[%clk 0:02:52]}  Nf6 {[%clk 0:02:55]} 7. O-O {[%clk 0:02:52]}  Bg7 {[%clk 0:02:56]} 8. c4 {[%clk 0:02:52]}  O-O {[%clk 0:02:56]} 9. Nc3 {[%clk 0:02:52]}  Nbd7 {[%clk 0:02:55]} 10. f4 {[%clk 0:02:50]}  c6 {[%clk 0:02:48]} 11. Be3 {[%clk 0:02:49]}  h5 {[%clk 0:02:41]} 12. Qe1 {[%clk 0:02:41]}  Nxe5 {[%clk 0:02:41]} 13. fxe5 {[%clk 0:02:34]}  Ng4 {[%clk 0:02:42]} 14. Bxg4 {[%clk 0:02:32]}  Bxg4 {[%clk 0:02:41]} 15. Qh4 {[%clk 0:02:24]}  c5 {[%clk 0:02:32]} 16. Nd5 {[%clk 0:02:18]}  e6 {[%clk 0:02:20]} 17. Bg5 {[%clk 0:02:10]}  Qd7 {[%clk 0:02:03]} 18. Ne7+ {[%clk 0:01:38]}  Kh7 {[%clk 0:02:03]} 19. h3 {[%clk 0:01:23]}  Qxd4+ {[%clk 0:01:56]} 20. Rf2 {[%clk 0:01:22]}  Bf5 {[%clk 0:01:52]} 21. g4 {[%clk 0:01:22]}  Bxe5 {[%clk 0:01:28]} 22. Re1 {[%clk 0:01:12]}  f6 {[%clk 0:01:22]} 23. Be3 {[%clk 0:00:56]}  Qxc4 {[%clk 0:01:12]} 24. b3 {[%clk 0:00:50]}  Qb4 {[%clk 0:01:07]} 25. Bd2 {[%clk 0:00:49]}  Qd4 {[%clk 0:01:07]} 26. Be3 {[%clk 0:00:41]}  Qb4 {[%clk 0:01:07]} 27. a3 {[%clk 0:00:39]}  Qxe1+ {[%clk 0:01:06]} 28. Kg2 {[%clk 0:00:38]}  Be4+ {[%clk 0:01:02]} 0-1


[Site "https://www.chess.com"]

[Event "Titled Tuesday Blitz March 21 Late 2023"]
[White "Hindermann, Felix"]
[Black "Marjanovic, Annamaria"]
[WhiteFideId "1305212"]
[BlackFideId "750930"]
[WhiteElo "2206"]
[BlackElo "2212"]
[Result "0-1"]
[Round "05"]
[TimeControl "180+2"]
[Date "2023.03.21"]
[WhiteClock "0:00:12"]
[BlackClock "0:00:11"]

1. e4 {[%clk 0:02:55]}  e6 {[%clk 0:02:56]} 2. d4 {[%clk 0:02:51]}  d5 {[%clk 0:02:57]} 3. e5 {[%clk 0:02:51]}  c5 {[%clk 0:02:56]} 4. c3 {[%clk 0:02:52]}  Nc6 {[%clk 0:02:56]} 5. Be3 {[%clk 0:02:52]}  Bd7 {[%clk 0:02:54]} 6. Nf3 {[%clk 0:02:52]}  Nh6 {[%clk 0:02:50]} 7. dxc5 {[%clk 0:02:43]}  Nf5 {[%clk 0:02:49]} 8. Bd4 {[%clk 0:02:43]}  Nfxd4 {[%clk 0:02:13]} 9. cxd4 {[%clk 0:02:43]}  Qa5+ {[%clk 0:02:13]} 10. Nc3 {[%clk 0:02:42]}  b6 {[%clk 0:02:09]} 11. cxb6 {[%clk 0:02:33]}  Qxb6 {[%clk 0:02:09]} 12. Qd2 {[%clk 0:02:27]}  Rb8 {[%clk 0:02:07]} 13. Rb1 {[%clk 0:02:21]}  Bb4 {[%clk 0:02:03]} 14. Be2 {[%clk 0:02:19]}  O-O {[%clk 0:01:45]} 15. O-O {[%clk 0:02:19]}  Rfc8 {[%clk 0:01:45]} 16. Rfc1 {[%clk 0:02:16]}  Qa5 {[%clk 0:01:42]} 17. a3 {[%clk 0:02:11]}  Bxc3 {[%clk 0:01:35]} 18. Rxc3 {[%clk 0:02:06]}  Qb6 {[%clk 0:01:26]} 19. h4 {[%clk 0:01:56]}  Na5 {[%clk 0:01:22]} 20. Rxc8+ {[%clk 0:01:30]}  Rxc8 {[%clk 0:01:20]} 21. Rc1 {[%clk 0:01:24]}  Nb3 {[%clk 0:01:09]} 22. Rxc8+ {[%clk 0:01:22]}  Bxc8 {[%clk 0:01:10]} 23. Qc3 {[%clk 0:01:15]}  Bd7 {[%clk 0:01:07]} 24. Bd1 {[%clk 0:01:11]}  Na5 {[%clk 0:01:04]} 25. b3 {[%clk 0:01:08]}  h6 {[%clk 0:01:01]} 26. Bc2 {[%clk 0:01:08]}  Kf8 {[%clk 0:00:41]} 27. a4 {[%clk 0:01:04]}  Nc6 {[%clk 0:00:39]} 28. Qc5+ {[%clk 0:00:56]}  Qxc5 {[%clk 0:00:30]} 29. dxc5 {[%clk 0:00:57]}  Nb4 {[%clk 0:00:30]} 30. Bb1 {[%clk 0:00:58]}  Na6 {[%clk 0:00:30]} 31. Nd4 {[%clk 0:00:50]}  Nxc5 {[%clk 0:00:30]} 32. f4 {[%clk 0:00:50]}  Ke7 {[%clk 0:00:26]} 33. Kf2 {[%clk 0:00:50]}  Kd8 {[%clk 0:00:26]} 34. Ke3 {[%clk 0:00:50]}  Kc7 {[%clk 0:00:27]} 35. g4 {[%clk 0:00:50]}  Kb6 {[%clk 0:00:24]} 36. f5 {[%clk 0:00:48]}  Ka5 {[%clk 0:00:21]} 37. Bd3 {[%clk 0:00:39]}  Kb4 {[%clk 0:00:20]} 38. Bc2 {[%clk 0:00:30]}  Kc3 {[%clk 0:00:20]} 39. Bd1 {[%clk 0:00:29]}  a6 {[%clk 0:00:18]} 40. Bc2 {[%clk 0:00:24]}  a5 {[%clk 0:00:17]} 41. Bd1 {[%clk 0:00:25]}  Nd3 {[%clk 0:00:17]} 42. Nb5+ {[%clk 0:00:17]}  Bxb5 {[%clk 0:00:16]} 43. axb5 {[%clk 0:00:17]}  Nxe5 {[%clk 0:00:16]} 44. Kf4 {[%clk 0:00:17]}  Nd7 {[%clk 0:00:16]} 45. g5 {[%clk 0:00:12]}  e5+ {[%clk 0:00:16]} 46. Kf3 {[%clk 0:00:12]}  hxg5 {[%clk 0:00:16]} 47. hxg5 {[%clk 0:00:12]}  Kb4 {[%clk 0:00:15]} 48. Be2 {[%clk 0:00:12]}  f6 {[%clk 0:00:15]} 49. gxf6 {[%clk 0:00:12]}  gxf6 {[%clk 0:00:16]} 50. Kg4 {[%clk 0:00:12]}  d4 {[%clk 0:00:12]} 51. Bc4 {[%clk 0:00:12]}  e4 {[%clk 0:00:11]} 52. Kf4 {[%clk 0:00:12]}  e3 {[%clk 0:00:10]} 53. Ke4 {[%clk 0:00:13]}  Kc5 {[%clk 0:00:11]} 54. Kd3 {[%clk 0:00:13]}  Ne5+ {[%clk 0:00:11]} 55. Ke2 {[%clk 0:00:11]}  a4 {[%clk 0:00:10]} 56. b6 {[%clk 0:00:04]}  Kxb6 {[%clk 0:00:09]} 57. bxa4 {[%clk 0:00:05]}  Nxc4 {[%clk 0:00:09]} 58. Kd3 {[%clk 0:00:06]}  Kc5 {[%clk 0:00:10]} 59. a5 {[%clk 0:00:06]}  Nxa5 {[%clk 0:00:09]} 60. Ke4 {[%clk 0:00:06]}  e2 {[%clk 0:00:09]} 61. Kf4 {[%clk 0:00:07]}  e1=Q {[%clk 0:00:09]} 62. Kg4 {[%clk 0:00:08]}  Qe5 {[%clk 0:00:09]} 63. Kh5 {[%clk 0:00:09]}  Qxf5+ {[%clk 0:00:09]} 64. Kh6 {[%clk 0:00:09]}  Qg5+ {[%clk 0:00:09]} 65. Kh7 {[%clk 0:00:09]}  d3 {[%clk 0:00:10]} 66. Kh8 {[%clk 0:00:10]}  d2 {[%clk 0:00:11]} 67. Kh7 {[%clk 0:00:11]}  d1=Q {[%clk 0:00:11]} 68. Kh8 {[%clk 0:00:12]}  Qdh5# {[%clk 0:00:11]} 0-1


[Site "https://www.chess.com"]

[Event "Titled Tuesday Blitz March 21 Late 2023"]
[White "Fernandez Siles, Luis"]
[Black "Koellner, Ruben Gideon"]
[WhiteFideId "2209420"]
[BlackFideId "12993093"]
[WhiteElo "2186"]
[BlackElo "2303"]
[Result "1-0"]
[Round "05"]
[TimeControl "180+2"]
[Date "2023.03.21"]
[WhiteClock "0:00:14"]
[BlackClock "0:00:02"]

1. d4 {[%clk 0:03:00]}  d6 {[%clk 0:02:05]} 2. Nf3 {[%clk 0:02:59]}  Nf6 {[%clk 0:02:05]} 3. c4 {[%clk 0:02:58]}  g6 {[%clk 0:02:05]} 4. Nc3 {[%clk 0:02:58]}  Bf5 {[%clk 0:02:05]} 5. Ng5 {[%clk 0:02:56]}  Bg7 {[%clk 0:02:03]} 6. e4 {[%clk 0:02:56]}  Bd7 {[%clk 0:02:03]} 7. Be2 {[%clk 0:02:54]}  e5 {[%clk 0:02:03]} 8. d5 {[%clk 0:02:24]}  a5 {[%clk 0:01:52]} 9. h4 {[%clk 0:02:21]}  h6 {[%clk 0:01:50]} 10. Nh3 {[%clk 0:02:20]}  Na6 {[%clk 0:01:46]} 11. f3 {[%clk 0:02:12]}  Nh5 {[%clk 0:01:43]} 12. Nf2 {[%clk 0:02:12]}  Ng3 {[%clk 0:01:43]} 13. Rh2 {[%clk 0:02:10]}  Nc5 {[%clk 0:01:35]} 14. Nh1 {[%clk 0:02:01]}  Nxh1 {[%clk 0:01:28]} 15. Rxh1 {[%clk 0:02:01]}  f5 {[%clk 0:01:29]} 16. h5 {[%clk 0:01:44]}  g5 {[%clk 0:01:28]} 17. g4 {[%clk 0:01:34]}  fxg4 {[%clk 0:01:20]} 18. fxg4 {[%clk 0:01:33]}  O-O {[%clk 0:01:21]} 19. Be3 {[%clk 0:01:30]}  Qe7 {[%clk 0:01:16]} 20. Rf1 {[%clk 0:01:19]}  Rf4 {[%clk 0:01:14]} 21. Bxf4 {[%clk 0:01:09]}  exf4 {[%clk 0:01:15]} 22. Bf3 {[%clk 0:01:01]}  Re8 {[%clk 0:00:57]} 23. Kf2 {[%clk 0:00:55]}  Bxc3 {[%clk 0:00:27]} 24. bxc3 {[%clk 0:00:56]}  Nxe4+ {[%clk 0:00:28]} 25. Bxe4 {[%clk 0:00:28]}  Qxe4 {[%clk 0:00:29]} 26. Re1 {[%clk 0:00:29]}  Qxc4 {[%clk 0:00:26]} 27. Rxe8+ {[%clk 0:00:25]}  Bxe8 {[%clk 0:00:27]} 28. Qd4 {[%clk 0:00:23]}  Qxd4+ {[%clk 0:00:15]} 29. cxd4 {[%clk 0:00:24]}  Bf7 {[%clk 0:00:15]} 30. Rc1 {[%clk 0:00:22]}  Bxd5 {[%clk 0:00:15]} 31. Rxc7 {[%clk 0:00:22]}  Bxa2 {[%clk 0:00:16]} 32. Rxb7 {[%clk 0:00:21]}  a4 {[%clk 0:00:17]} 33. Ra7 {[%clk 0:00:19]}  Bb3 {[%clk 0:00:16]} 34. Ra6 {[%clk 0:00:19]}  Bd1 {[%clk 0:00:07]} 35. Rxd6 {[%clk 0:00:16]}  a3 {[%clk 0:00:07]} 36. Rxh6 {[%clk 0:00:15]}  Bxg4 {[%clk 0:00:03]} 37. Rg6+ {[%clk 0:00:14]}  Kf7 {[%clk 0:00:03]} 38. Rxg5 {[%clk 0:00:14]}  a2 {[%clk 0:00:02]} 39. Ra5 {[%clk 0:00:14]} 1-0


[Site "https://www.chess.com"]

[Event "Titled Tuesday Blitz March 21 Late 2023"]
[White "Bolanos, Fernando"]
[Black "Defend1r"]
[WhiteFideId "3304094"]
[WhiteElo "2166"]
[BlackElo "2568"]
[Result "1-0"]
[Round "05"]
[TimeControl "180+2"]
[Date "2023.03.21"]
[WhiteClock "0:00:10"]
[BlackClock "0:00:20"]

1. e4 {[%clk 0:03:00]}  c5 {[%clk 0:03:00]} 2. Nf3 {[%clk 0:02:49]}  d6 {[%clk 0:03:00]} 3. d4 {[%clk 0:02:50]}  cxd4 {[%clk 0:03:01]} 4. Nxd4 {[%clk 0:02:50]}  Nf6 {[%clk 0:03:01]} 5. f3 {[%clk 0:02:51]}  a6 {[%clk 0:02:59]} 6. c4 {[%clk 0:02:51]}  e6 {[%clk 0:02:58]} 7. Nc3 {[%clk 0:02:51]}  Be7 {[%clk 0:02:59]} 8. Be3 {[%clk 0:02:52]}  Nc6 {[%clk 0:02:57]} 9. Be2 {[%clk 0:02:52]}  Bd7 {[%clk 0:02:57]} 10. O-O {[%clk 0:02:52]}  O-O {[%clk 0:02:57]} 11. Qd2 {[%clk 0:02:53]}  Rc8 {[%clk 0:02:57]} 12. Rfc1 {[%clk 0:02:53]}  Qa5 {[%clk 0:02:56]} 13. a3 {[%clk 0:02:50]}  Ne5 {[%clk 0:02:50]} 14. b4 {[%clk 0:02:50]}  Qc7 {[%clk 0:02:50]} 15. Nd1 {[%clk 0:02:50]}  Qb8 {[%clk 0:02:46]} 16. Nf2 {[%clk 0:02:50]}  d5 {[%clk 0:02:45]} 17. exd5 {[%clk 0:02:42]}  exd5 {[%clk 0:02:46]} 18. c5 {[%clk 0:02:42]}  Ng6 {[%clk 0:02:46]} 19. a4 {[%clk 0:02:28]}  Rfe8 {[%clk 0:02:43]} 20. Nb3 {[%clk 0:02:22]}  Bd8 {[%clk 0:02:40]} 21. b5 {[%clk 0:01:26]}  Qe5 {[%clk 0:02:37]} 22. Nd1 {[%clk 0:01:18]}  axb5 {[%clk 0:02:36]} 23. axb5 {[%clk 0:01:18]}  Bc7 {[%clk 0:02:36]} 24. g3 {[%clk 0:01:17]}  d4 {[%clk 0:02:18]} 25. Nxd4 {[%clk 0:01:13]}  Nd5 {[%clk 0:02:16]} 26. Nc2 {[%clk 0:01:10]}  Bf5 {[%clk 0:02:05]} 27. Bd3 {[%clk 0:01:05]}  Bxd3 {[%clk 0:02:00]} 28. Qxd3 {[%clk 0:01:06]}  Qh5 {[%clk 0:01:56]} 29. Bf2 {[%clk 0:00:53]}  Rcd8 {[%clk 0:01:54]} 30. Nd4 {[%clk 0:00:39]}  Ne5 {[%clk 0:01:45]} 31. Qf5 {[%clk 0:00:39]}  Qh6 {[%clk 0:01:34]} 32. f4 {[%clk 0:00:31]}  Ng6 {[%clk 0:01:27]} 33. b6 {[%clk 0:00:26]}  Bb8 {[%clk 0:01:21]} 34. c6 {[%clk 0:00:26]}  bxc6 {[%clk 0:01:17]} 35. Nxc6 {[%clk 0:00:27]}  Ngxf4 {[%clk 0:01:05]} 36. Nxd8 {[%clk 0:00:18]}  Ne2+ {[%clk 0:01:00]} 37. Kf1 {[%clk 0:00:18]}  Rxd8 {[%clk 0:00:54]} 38. Rc8 {[%clk 0:00:14]}  Qxb6 {[%clk 0:00:39]} 39. Bxb6 {[%clk 0:00:11]}  g6 {[%clk 0:00:27]} 40. Rxd8+ {[%clk 0:00:09]}  Kg7 {[%clk 0:00:26]} 41. Qxd5 {[%clk 0:00:10]}  Nf4 {[%clk 0:00:27]} 42. Bd4+ {[%clk 0:00:10]}  Kh6 {[%clk 0:00:27]} 43. gxf4 {[%clk 0:00:09]}  Bxf4 {[%clk 0:00:28]} 44. Ra5 {[%clk 0:00:07]}  f6 {[%clk 0:00:25]} 45. Be3 {[%clk 0:00:07]}  Bxe3 {[%clk 0:00:23]} 46. Nxe3 {[%clk 0:00:08]}  f5 {[%clk 0:00:24]} 47. Nxf5+ {[%clk 0:00:09]}  Kg5 {[%clk 0:00:24]} 48. Ng3+ {[%clk 0:00:09]}  Kg4 {[%clk 0:00:24]} 49. Qg5+ {[%clk 0:00:09]}  Kh3 {[%clk 0:00:21]} 50. Qh6+ {[%clk 0:00:09]}  Kg4 {[%clk 0:00:21]} 51. Rd4+ {[%clk 0:00:10]}  Kf3 {[%clk 0:00:20]} 52. Ra3# {[%clk 0:00:10]} 1-0


[Site "https://www.chess.com"]